bitfinex/quotes_ETHUSD_20251127
["timestamp","ask_amount","ask_price","bid_price","bid_amount"]
[1764210353992,0.002,3062.0,3061.9,3.08376235]
[1764210354300,0.002,3062.0,3061.9,2.62156235]
[1764210354472,0.4998,3062.0,3061.9,2.62156235]
[1764210354883,0.4998,3062.0,3061.9,8.03787767]
[1764210355069,0.9903,3062.0,3061.9,8.03787767]
[1764210355662,0.002,3062.0,3061.9,8.03787767]
[1764210356185,0.002,3062.0,3061.9,9.77686544]
[1764210357793,0.002,3062.0,3061.9,8.0320001]
[1764210358404,3.26453485,3063.3,3062.0,0.405504]
[1764210358581,3.26453485,3063.3,3062.9,0.4622]
[1764210358783,6.5290697,3063.3,3062.9,0.4622]
[1764210359399,3.26453485,3063.3,3062.9,0.4622]
[1764210359606,6.5290697,3063.3,3062.9,0.4622]
[1764210359774,0.4905,3063.6,3062.9,0.4622]
[1764210359775,0.72559411,3063.4,3062.9,0.9352]
[1764210360106,3.26445336,3063.3,3062.9,0.9352]
[1764210360301,3.26445336,3063.3,3063.0,0.473]
[1764210360500,3.26445336,3063.3,3062.8,0.211]
[1764210360702,3.26408745,3063.7,3063.2,0.4622]
[1764210360885,3.26408745,3063.7,3063.2,0.9352]
[1764210361080,0.6831,3064.0,3063.2,0.9352]
[1764210361081,0.1944,3064.4,3063.6,0.4622]
[1764210361298,3.45768155,3064.4,3063.7,0.6732]
[1764210361675,6.72097111,3064.4,3063.7,0.6732]
[1764210361875,6.72097111,3064.4,3063.7,1.1462]
[1764210362498,3.26328155,3064.4,3063.8,0.211]
[1764210362709,6.52657111,3064.4,3063.8,0.211]
[1764210362876,6.52657111,3064.4,3063.5,0.473]
[1764210363079,0.5905,3064.3,3063.6,0.211]
[1764210363302,0.30433023,3064.2,3063.6,0.211]
[1764210363671,0.79483023,3064.2,3063.1,1.19859411]
[1764210363877,0.30433023,3064.1,3063.2,0.211]
[1764210364131,6.52762818,3063.9,3063.2,0.211]
[1764210364303,0.002,3064.4,3064.0,0.6355]
[1764210364605,0.002,3064.4,3064.3,0.4622]
[1764210364915,0.002,3064.4,3064.3,0.9352]
[1764210365287,0.002,3064.4,3064.3,5.53725422]
[1764210365631,0.002,3064.4,3064.3,6.11207964]
[1764210366153,0.002,3064.4,3064.3,9.37546768]
[1764210367923,0.002,3064.4,3064.3,2.12652942]
[1764210368239,0.002,3064.4,3064.3,4.81509204]
[1764210368619,0.002,3064.4,3064.3,1.551704]
[1764210368939,0.002,3064.4,3064.3,1.340704]
[1764210369139,0.002,3064.4,3064.3,0.9352]
[1764210369341,0.002,3064.4,3064.3,0.4622]
[1764210369546,0.002,3064.4,3064.3,0.6732]
[1764210369844,0.002,3064.4,3064.3,1.1561]
[1764210370164,0.002,3064.4,3064.3,0.6732]
[1764210370341,0.002,3064.4,3063.1,0.6939]
[1764210370342,1.96780108,3064.4,3063.1,0.6939]
[1764210370545,0.0797,3064.1,3063.1,0.6939]
[1764210370745,0.1797,3064.1,3063.2,0.211]
[1764210370951,0.4839,3064.0,3063.1,0.4829]
[1764210371150,0.4839,3064.0,3063.2,0.211]
[1764210371469,0.4839,3064.0,3062.9,0.1978]
[1764210371470,0.1877,3063.9,3062.9,0.1978]
[1764210371761,0.1877,3063.9,3063.3,0.211]
[1764210371930,0.6716,3063.9,3062.9,0.6807]
[1764210372129,0.6716,3063.9,3063.0,0.211]
[1764210372331,6.52784124,3063.8,3063.0,0.211]
[1764210372550,7.01174124,3063.8,3063.1,0.211]
[1764210373065,0.4839,3063.7,3063.2,0.211]
[1764210373270,0.4864,3063.0,3062.8,0.211]
[1764210373439,0.4839,3063.7,3062.4,0.405504]
[1764210373645,0.4839,3063.7,3062.9,0.461]
[1764210373845,3.98386474,3063.8,3062.9,0.461]
[1764210374047,3.98386474,3063.8,3063.0,0.683]
[1764210374242,7.24778536,3063.8,3063.0,0.683]
[1764210374466,7.24778536,3063.8,3063.1,0.1875]
[1764210374675,0.4547,3063.7,3063.0,0.211]
[1764210374989,0.77024854,3063.6,3063.0,0.211]
[1764210375147,6.52784124,3063.8,3063.1,0.1875]
[1764210375349,3.26392062,3063.8,3063.1,0.1875]
[1764210375551,0.405504,3065.0,3063.2,0.472]
[1764210375552,0.6485,3064.1,3063.2,0.472]
[1764210375849,3.26371215,3064.0,3063.2,0.472]
[1764210376049,6.5274243,3064.0,3063.2,0.88552529]
[1764210376492,6.5274243,3064.0,3063.2,0.472]
[1764210377145,3.26339854,3064.3,3063.3,0.405504]
[1764210377661,3.26339854,3064.3,3063.4,0.472]
[1764210377860,6.52679708,3064.3,3063.4,0.472]
[1764210378155,6.52679708,3064.3,3063.5,0.211]
[1764210378342,0.002,3064.4,3063.5,2.83256235]
[1764210378343,6.5285631,3064.4,3063.5,2.83256235]
[1764210378546,6.5285631,3064.4,3063.5,3.30456235]
[1764210378782,0.4547,3064.3,3063.6,0.211]
[1764210379853,6.5285631,3064.4,3063.7,2.62156235]
[1764210380173,0.002,3064.4,3063.7,0.405504]
[1764210380474,0.4567,3064.4,3063.5,0.211]
[1764210380710,0.1,3064.3,3063.6,0.211]
[1764210381175,0.4547,3064.2,3063.6,0.211]
[1764210381771,0.002,3064.4,3064.1,0.4853]
[1764210381963,0.002,3064.4,3064.3,0.4853]
[1764210382381,0.002,3064.4,3064.1,0.3946]
[1764210382777,0.002,3064.4,3064.3,0.4853]
[1764210382984,0.002,3064.4,3064.3,0.9573]
[1764210383673,0.002,3064.4,3064.3,2.1507073]
[1764210384388,0.002,3064.4,3064.3,5.41409534]
[1764210385371,0.002,3064.4,3064.3,2.3617073]
[1764210385569,0.002,3064.4,3064.3,1.4842033]
[1764210385772,0.002,3064.4,3064.3,1.1683]
[1764210387401,0.002,3064.4,3064.3,1.573804]
[1764210388303,0.002,3064.4,3064.3,0.4853]
[1764210388696,0.002,3064.4,3064.3,1.1683]
[1764210389404,0.002,3064.4,3064.3,6.42781967]
[1764210389604,0.002,3064.4,3064.3,8.50639394]
[1764210389905,0.002,3064.4,3064.3,7.5263813]
[1764210390204,0.002,3064.4,3064.3,7.65705776]
[1764210390902,0.002,3064.4,3064.3,2.99672262]
[1764210391102,0.002,3064.4,3064.3,5.35178615]
[1764210391281,0.002,3064.4,3064.3,5.56278615]
[1764210391474,0.002,3064.4,3064.3,6.42355279]
[1764210391686,0.002,3064.4,3064.3,1.362804]
[1764210391886,0.002,3064.4,3064.2,1.13109811]
[1764210392091,0.002,3064.4,3064.3,0.6953]
[1764210392492,0.002,3064.4,3064.3,1.1673]
[1764210392695,0.002,3064.4,3064.3,0.4853]
[1764210393012,0.002,3064.4,3064.3,1.42089411]
[1764210393212,0.002,3064.4,3064.3,0.6953]
[1764210393613,0.002,3064.4,3064.3,1.2425252]
[1764210393781,0.002,3064.4,3064.3,0.21]
[1764210394916,0.002,3064.4,3064.3,0.6953]
[1764210395123,0.002,3064.4,3064.3,7.45775439]
[1764210396201,0.002,3064.4,3064.3,5.56178615]
[1764210396408,0.002,3064.4,3064.3,9.04411514]
[1764210396621,0.002,3064.4,3064.3,10.85865714]
[1764210396939,0.002,3064.4,3064.3,10.12855415]
[1764210397138,0.002,3064.4,3064.3,9.91855415]
[1764210397351,0.003,3065.2,3064.4,1.362804]
[1764210397553,0.003,3065.2,3065.1,5.99154833]
[1764210397838,0.003,3065.2,3065.1,2.57632177]
[1764210398130,0.003,3065.2,3065.1,2.39761995]
[1764210398344,0.1938,3066.8,3065.2,0.72559411]
[1764210398503,0.1938,3066.8,3065.7,0.890804]
[1764210398693,0.1938,3066.8,3065.7,1.100804]
[1764210398893,0.1938,3066.8,3065.7,1.572804]
[1764210399098,0.1938,3066.8,3065.7,2.54160007]
[1764210399303,0.1938,3066.8,3065.7,5.80349784]
[1764210399502,0.4547,3066.7,3065.7,2.33160007]
[1764210399702,6.71529032,3066.8,3065.7,1.13400596]
[1764210399924,0.4801,3066.3,3065.7,2.06960007]
[1764210400511,0.003,3066.3,3065.7,5.79169784]
[1764210401622,0.003,3066.3,3065.7,5.12149784]
[1764210401801,0.003,3066.3,3065.7,5.79369784]
[1764210402002,0.005,3065.8,3065.7,5.79369784]
[1764210402198,0.005,3065.8,3065.7,5.58369784]
[1764210402403,0.005,3065.8,3065.7,5.79369784]
[1764210403845,0.005,3065.8,3065.7,5.58369784]
[1764210404227,0.005,3065.8,3065.7,1.66609607]
[1764210404427,0.005,3065.8,3065.7,1.45609607]
[1764210404747,0.005,3065.8,3065.7,5.55049588]
[1764210406020,0.005,3065.8,3065.7,5.34049588]
[1764210406245,0.003,3066.3,3065.8,1.13109811]
[1764210406429,0.30299589,3068.7,3067.7,4.19655022]
[1764210406745,0.999,3069.0,3067.8,1.34109811]
[1764210406978,0.999,3069.0,3068.9,0.4546]
[1764210407165,0.999,3069.0,3068.3,0.405504]
[1764210407371,0.4988,3068.8,3068.4,0.21]
[1764210407716,0.4968,3068.8,3068.4,0.21]
[1764210407948,0.4771,3068.7,3067.8,0.97867946]
[1764210408122,0.4968,3068.5,3067.6,3.44706948]
[1764210408331,0.4968,3068.5,3067.8,0.405504]
[1764210408535,0.999,3069.0,3068.5,0.405504]
[1764210408722,0.999,3069.0,3068.0,0.405504]
[1764210409055,0.999,3069.0,3068.2,0.405504]
[1764210409257,0.1893,3068.9,3068.5,0.002]
[1764210409624,0.4988,3068.6,3068.5,0.213]
[1764210410043,0.4988,3068.6,3068.5,0.002]
[1764210410531,0.999,3069.0,3068.5,0.6676]
[1764210410753,0.999,3069.0,3068.6,0.4602]
[1764210411083,0.1893,3068.9,3068.7,0.211]
[1764210411382,0.4988,3068.6,3068.5,0.002]
[1764210411549,3.75761509,3068.6,3068.5,0.002]
[1764210411748,4.93634481,3068.6,3068.5,0.002]
[1764210412151,5.03634481,3068.6,3068.5,0.002]
[1764210412447,4.93634481,3068.6,3068.5,0.002]
[1764210412860,8.1951599,3068.6,3067.5,0.211]
[1764210413061,0.5771,3068.5,3067.5,0.211]
[1764210413254,1.1553975,3068.4,3067.5,0.211]
[1764210413569,1.1553975,3068.4,3066.8,1.43923079]
[1764210413570,6.51826744,3068.3,3066.8,1.43923079]
[1764210413772,3.73623372,3068.3,3067.1,0.211]
[1764210413974,0.4771,3068.3,3067.1,0.6712]
[1764210414177,0.999,3069.0,3068.2,0.6438]
[1764210414349,0.1893,3068.9,3067.8,0.4602]
[1764210414544,4.42576801,3068.8,3067.4,0.1892]
[1764210414893,0.6664,3068.9,3067.6,0.405504]
[1764210415371,6.51741778,3068.7,3067.7,0.211]
[1764210415573,3.97709067,3068.7,3067.5,0.405504]
[1764210415761,0.4771,3068.6,3067.8,0.211]
[1764210416379,0.4771,3068.6,3067.9,0.211]
[1764210416554,0.4771,3068.6,3067.6,0.211]
[1764210416754,1.10716084,3068.5,3067.4,0.1892]
[1764210416955,1.10716084,3068.5,3067.4,0.4002]
[1764210417164,0.4771,3068.4,3067.4,3.66026308]
[1764210417371,0.4771,3068.4,3067.4,4.12046308]
[1764210417677,3.25913372,3068.3,3067.4,4.32150939]
[1764210417851,3.25913372,3068.3,3067.5,0.211]
[1764210418047,0.4771,3068.2,3067.0,3.90383431]
[1764210418277,0.4771,3068.2,3067.1,0.211]
[1764210418482,0.4771,3068.2,3067.0,0.6434]
[1764210418665,0.69953674,3068.1,3067.0,3.90391272]
[1764210418864,0.64953674,3068.1,3067.1,0.211]
[1764210419069,0.4771,3068.1,3067.2,0.405504]
[1764210419362,0.4771,3068.0,3067.0,0.90879411]
[1764210419562,3.25955865,3067.9,3067.1,0.211]
[1764210419869,3.44885865,3067.9,3067.1,0.211]
[1764210420558,0.4771,3068.4,3067.2,0.405504]
[1764210421062,0.4771,3068.4,3067.3,0.211]
[1764210421269,0.4771,3068.4,3067.2,0.4602]
[1764210421462,0.4771,3068.4,3067.3,0.211]
[1764210421463,6.51826744,3068.3,3067.3,0.211]
[1764210421781,0.4771,3068.4,3067.3,7.19151373]
[1764210422003,0.4771,3068.4,3067.4,0.405504]
[1764210422280,0.4771,3068.4,3067.4,0.865704]
[1764210422488,0.4771,3068.7,3067.4,1.59129811]
[1764210422673,3.25881509,3068.6,3067.5,0.4602]
[1764210422861,0.4771,3068.7,3067.6,0.405504]
[1764210423263,0.4771,3068.7,3067.8,0.405504]
[1764210423587,3.73582038,3068.7,3067.9,0.211]
[1764210423791,0.4771,3068.7,3068.0,3.25945241]
[1764210423961,3.73580899,3068.7,3067.9,3.47053265]
[1764210424306,3.73580899,3068.7,3068.0,0.211]
[1764210424307,3.25881509,3068.6,3068.0,0.211]
[1764210424609,10.35354527,3068.6,3067.2,0.72559411]
[1764210424756,10.35354527,3068.6,3067.1,0.41149049]
[1764210424757,5.93822254,3068.5,3067.1,0.41149049]
[1764210425088,5.93822254,3068.5,3067.2,0.211]
[1764210425089,1.51245453,3068.5,3067.2,0.211]
[1764210425288,0.4771,3068.4,3067.2,0.211]
[1764210425797,6.51826744,3068.3,3067.3,0.211]
[1764210426004,0.70953674,3068.2,3067.3,0.211]
[1764210426182,1.18663674,3068.2,3067.1,3.26039795]
[1764210426378,0.4771,3068.1,3067.4,0.211]
[1764210426569,0.0818,3067.1,3067.0,0.001]
[1764210426771,0.30285722,3067.9,3067.0,0.001]
[1764210426967,0.1893,3067.7,3067.0,0.001]
[1764210427379,0.4988,3067.1,3067.0,0.001]
[1764210427793,4.21630885,3067.1,3067.0,0.001]
[1764210427979,4.51957189,3067.1,3067.0,0.001]
[1764210428192,0.30326304,3067.1,3067.0,0.001]
[1764210428394,0.1893,3067.7,3067.0,0.4899]
[1764210428596,0.6464,3067.7,3067.1,0.1832]
[1764210428772,0.19,3067.9,3067.1,0.1832]
[1764210428978,0.4571,3068.1,3067.2,0.4798]
[1764210429198,0.30327514,3068.0,3067.2,0.4798]
[1764210429516,0.4571,3068.6,3067.3,0.616504]
[1764210429703,0.30328667,3068.5,3067.5,3.2599837]
[1764210429884,0.30328667,3068.5,3067.6,0.9246569]
[1764210430208,0.30328667,3068.5,3067.7,0.405504]
[1764210430506,3.70940841,3068.8,3067.7,0.864604]
[1764210430718,0.30338389,3068.7,3067.7,0.864604]
[1764210430889,0.30338389,3068.7,3067.8,0.4591]
[1764210431075,0.4508,3068.6,3067.9,0.211]
[1764210431604,0.4508,3068.6,3068.0,0.211]
[1764210431782,3.70967522,3068.6,3068.0,0.211]
[1764210431988,3.70962625,3068.6,3068.0,0.211]
[1764210432293,0.30361911,3068.5,3068.0,0.55806285]
[1764210432606,0.30361911,3068.5,3068.0,3.60650692]
[1764210432831,0.30361911,3068.5,3068.1,0.211]
[1764210433102,3.25872557,3068.7,3068.1,0.211]
[1764210433356,0.30377459,3068.6,3068.1,0.211]
[1764210433558,0.6401,3068.9,3068.2,0.211]
[1764210433706,0.30374859,3068.8,3068.2,0.88398763]
[1764210434050,0.30374859,3068.7,3068.2,4.14319508]
[1764210434232,0.1893,3068.9,3068.2,4.14319508]
[1764210434403,0.303918,3068.8,3068.2,4.14319508]
[1764210434714,0.303918,3068.8,3068.3,0.78615811]
[1764210435029,0.303918,3068.8,3068.2,3.47020745]
[1764210435228,0.303918,3068.7,3068.2,3.47020745]
[1764210435399,1.001,3069.0,3068.2,0.211]
[1764210435601,0.30411357,3068.9,3068.2,3.47023579]
[1764210435800,0.30411357,3068.8,3068.2,3.47023579]
[1764210436006,0.1907,3068.9,3068.3,0.47812274]
[1764210436229,0.30435262,3068.8,3068.3,0.47812274]
[1764210436539,0.30435262,3068.7,3068.3,0.47812274]
[1764210436737,0.4508,3068.8,3068.4,0.211]
[1764210436905,0.30435321,3068.7,3068.4,0.211]
[1764210437107,1.001,3069.0,3068.4,0.55802301]
[1764210437435,0.94589007,3068.9,3068.4,0.34702301]
[1764210437636,0.94589007,3068.9,3068.1,4.11123136]
[1764210437637,0.4543,3068.5,3068.1,4.11123136]
[1764210437823,0.4543,3068.5,3068.0,0.85189164]
[1764210438035,0.75522051,3068.4,3068.1,0.211]
[1764210438328,0.30442763,3068.3,3067.8,0.85189164]
[1764210438515,0.3044409,3068.2,3067.9,0.211]
[1764210438716,6.51720542,3068.8,3067.9,1.52199164]
[1764210438938,0.30441627,3068.7,3067.9,0.4591]
[1764210439106,0.30441627,3068.6,3068.0,0.211]
[1764210439308,0.30441627,3068.5,3068.1,0.211]
[1764210439508,0.30441627,3068.4,3068.0,0.211]
[1764210439745,0.30441627,3068.3,3068.0,0.211]
[1764210439951,3.25881509,3068.6,3068.0,0.211]
[1764210440163,0.30452293,3068.5,3068.0,0.211]
[1764210440449,0.30452293,3068.4,3068.0,0.211]
[1764210440668,0.30452293,3068.3,3068.0,0.211]
[1764210440898,0.30452293,3068.2,3068.0,0.211]
[1764210441109,3.25881509,3068.6,3068.0,0.211]
[1764210441278,0.30458944,3068.5,3068.1,0.4995]
[1764210441470,0.30458944,3068.4,3067.9,0.85189164]
[1764210441674,0.30458944,3068.3,3067.8,0.85189164]
[1764210441875,0.30458944,3068.2,3067.9,0.21]
[1764210442087,3.4492503,3068.9,3067.9,0.21]
[1764210442088,3.25919981,3068.3,3067.9,0.21]
[1764210442289,0.4543,3068.0,3067.7,0.85189164]
[1764210442489,0.4543,3068.0,3067.5,4.39983026]
[1764210442490,0.3397,3067.8,3067.6,0.85189164]
[1764210442686,0.30461079,3067.7,3067.5,0.21]
[1764210442869,0.1907,3067.9,3067.5,0.21]
[1764210443276,0.4508,3068.5,3067.6,3.71897742]
[1764210443476,0.30462199,3068.4,3067.6,7.78294292]
[1764210443703,0.30462199,3068.3,3067.8,0.85189164]
[1764210443880,6.70769531,3068.9,3067.8,0.85189164]
[1764210444205,0.4508,3068.6,3067.9,0.211]
[1764210444500,0.30458009,3068.5,3067.8,0.85189164]
[1764210444675,0.30458009,3068.4,3067.9,0.211]
[1764210444876,0.6033,3067.7,3067.4,0.85189164]
[1764210445072,0.4508,3068.5,3067.5,0.211]
[1764210445276,0.75541525,3068.4,3067.4,3.26008629]
[1764210445478,0.30461525,3068.3,3067.6,0.211]
[1764210445812,0.30461525,3068.3,3067.7,0.211]
[1764210445813,0.30461525,3068.2,3067.7,0.211]
[1764210446101,3.56405495,3068.1,3067.7,0.211]
[1764210446309,0.30461525,3068.0,3067.8,0.211]
[1764210446617,0.90791525,3067.9,3067.3,4.11308653]
[1764210446772,0.6033,3067.9,3067.7,0.211]
[1764210447295,0.6033,3067.9,3067.4,0.41130865]
[1764210447607,0.6033,3067.9,3067.5,0.211]
[1764210448778,0.4508,3067.8,3067.4,0.41130865]
[1764210448998,0.1903,3067.6,3067.5,0.21]
[1764210449195,0.149,3067.9,3067.4,0.41130865]
[1764210449393,0.45360422,3067.9,3067.5,0.21]
[1764210449603,0.4543,3067.6,3067.4,0.85189164]
[1764210449916,0.1903,3067.5,3067.4,0.21]
[1764210450117,0.49492926,3067.5,3067.3,0.001]
[1764210450279,1.20712926,3067.4,3067.3,0.001]
[1764210450478,4.46721923,3067.4,3067.3,0.001]
[1764210451306,5.23993407,3067.4,3067.3,0.001]
[1764210451485,5.33993407,3067.4,3067.3,0.001]
[1764210453180,9.76570208,3067.4,3067.3,0.001]
[1764210453600,5.33993407,3067.4,3067.3,0.001]
[1764210454013,2.0798441,3067.4,3067.3,0.001]
[1764210454222,4.56721923,3067.4,3067.3,0.001]
[1764210456909,4.46721923,3067.4,3067.3,0.001]
[1764210457490,4.01641923,3067.4,3067.3,0.001]
[1764210457888,4.46721923,3067.4,3067.3,0.001]
[1764210458086,4.16258997,3067.4,3067.3,0.001]
[1764210460219,0.9025,3067.4,3067.3,0.001]
[1764210460401,0.4517,3067.4,3067.3,0.001]
[1764210460730,0.359,3067.9,3067.3,0.001]
[1764210460731,0.4668,3067.8,3067.3,0.001]
[1764210460907,0.149,3067.9,3067.3,0.001]
[1764210460908,0.30390688,3067.7,3067.3,0.6802]
[1764210461107,0.1869,3067.9,3067.3,1.1332]
[1764210461422,0.1869,3067.9,3067.3,4.39339591]
[1764210461628,0.1869,3067.9,3067.4,0.43933959]
[1764210462130,3.4464815,3067.9,3067.4,0.43933959]
[1764210462326,3.9132815,3067.9,3067.3,0.1817]
[1764210462524,3.25934617,3068.1,3067.4,0.453]
[1764210463113,3.56346118,3068.0,3067.4,0.453]
[1764210463342,3.25953151,3068.0,3067.4,0.453]
[1764210463505,0.002,3068.2,3067.9,0.4985]
[1764210464419,0.002,3068.2,3068.1,0.4985]
[1764210465331,0.002,3068.2,3068.1,0.9515]
[1764210465743,0.002,3068.2,3068.1,4.21084617]
[1764210465907,0.002,3068.2,3068.1,4.63193079]
[1764210466316,0.002,3068.2,3068.1,4.84193079]
[1764210466637,0.002,3068.2,3068.1,1.58258462]
[1764210466807,0.002,3068.2,3068.1,1.12958462]
[1764210467009,0.002,3068.2,3068.1,4.38893079]
[1764210467331,0.002,3068.2,3068.1,0.63108462]
[1764210467530,0.002,3068.2,3068.1,1.12958462]
[1764210467831,0.002,3068.2,3068.1,0.91958462]
[1764210468032,0.002,3068.2,3068.1,0.42108462]
[1764210468236,0.002,3068.2,3068.1,0.7085]
[1764210468403,0.002,3068.2,3068.1,0.4985]
[1764210468608,0.9422,3068.2,3067.9,0.21]
[1764210469130,0.9422,3068.2,3067.8,0.21]
[1764210469131,0.4754,3068.2,3067.8,0.21]
[1764210469337,0.4754,3068.2,3067.8,0.55698715]
[1764210469338,0.002,3068.2,3067.8,0.55698715]
[1764210469534,0.4688,3068.2,3067.5,4.50133566]
[1764210469743,0.4734,3067.9,3067.5,0.38948902]
[1764210469913,0.1181,3067.6,3067.3,0.001]
[1764210470237,0.77093639,3068.1,3067.3,3.47117165]
[1764210470536,0.4668,3068.1,3067.3,0.001]
[1764210470868,3.72806594,3068.2,3067.4,0.21]
[1764210471012,0.30416838,3068.1,3067.4,0.21]
[1764210471340,3.25945241,3068.0,3067.4,0.21]
[1764210471710,0.4734,3067.5,3067.4,0.21]
[1764210472135,0.1869,3067.9,3067.4,0.4985]
[1764210472339,0.002,3068.2,3067.4,0.9515]
[1764210472340,3.26124018,3068.2,3067.4,0.9515]
[1764210472645,0.30426064,3068.1,3067.5,0.76828723]
[1764210472822,0.002,3068.2,3067.6,0.405504]
[1764210473025,0.002,3068.2,3068.1,0.4985]
[1764210473244,0.002,3068.2,3068.1,3.96884617]
[1764210473549,0.002,3068.2,3068.1,4.81873079]
[1764210473731,0.002,3068.2,3068.1,1.10638462]
[1764210473932,0.002,3068.2,3068.1,1.1625]
[1764210474111,0.002,3068.2,3068.1,0.211]
[1764210475047,0.9422,3068.2,3067.9,0.211]
[1764210475241,0.002,3068.2,3067.9,0.211]
[1764210475445,0.002,3068.2,3067.9,3.86288914]
[1764210475750,0.002,3068.2,3068.1,0.4985]
[1764210477476,4.65482418,3068.2,3067.4,0.001]
[1764210477754,0.4734,3068.0,3067.4,0.001]
[1764210478042,0.3041114,3067.9,3067.4,0.001]
[1764210478242,0.4734,3067.5,3067.4,0.001]
[1764210478742,0.9402,3067.5,3067.4,0.001]
[1764210479324,4.2001837,3067.5,3067.4,0.001]
[1764210480643,3.7333837,3067.5,3067.4,0.001]
[1764210481145,0.4734,3067.5,3067.4,0.001]
[1764210481645,0.5849,3067.9,3067.4,0.001]
[1764210481820,0.30408929,3067.8,3067.4,0.6802]
[1764210482020,0.4668,3068.1,3067.4,0.001]
[1764210482228,0.4734,3067.5,3067.4,0.001]
[1764210483355,6.9872872,3068.2,3067.4,0.9525]
[1764210483525,0.30416771,3068.1,3067.4,0.4995]
[1764210483847,0.77096771,3068.1,3067.4,0.212]
[1764210484053,0.5915,3067.5,3067.4,0.001]
[1764210484453,1.0583,3067.5,3067.4,0.001]
[1764210485450,4.3182837,3067.5,3067.4,0.001]
[1764210486158,3.8514837,3067.5,3067.4,0.001]
[1764210487447,3.44645865,3067.9,3067.4,0.6802]
[1764210487754,0.4734,3067.5,3067.4,0.001]
[1764210490356,0.9075,3067.5,3067.4,0.001]
[1764210491062,1.21215761,3067.5,3067.4,0.001]
[1764210491228,0.76035761,3067.5,3067.4,0.001]
[1764210492456,4.47214131,3067.5,3067.4,0.001]
[1764210492871,0.30465761,3067.5,3067.4,0.001]
[1764210493030,0.4557,3067.5,3067.4,0.001]
[1764210493524,0.76032175,3067.5,3067.4,0.001]
[1764210494055,4.47210545,3067.5,3067.4,0.001]
[1764210494551,5.24530224,3067.5,3067.4,0.001]
[1764210494861,0.76032175,3067.5,3067.4,0.001]
[1764210495025,0.9075,3067.5,3067.4,0.001]
[1764210495233,1.21211545,3067.5,3067.4,0.001]
[1764210495843,4.47209915,3067.5,3067.4,0.001]
[1764210496044,1.21211545,3067.5,3067.4,0.001]
[1764210496238,4.47209915,3067.5,3067.4,0.001]
[1764210496642,4.91930907,3067.5,3067.4,0.001]
[1764210497247,5.13030907,3067.5,3067.4,0.001]
[1764210497565,5.23030907,3067.5,3067.4,0.001]
[1764210499250,5.01930907,3067.5,3067.4,0.001]
[1764210499450,0.30461545,3067.5,3067.4,0.4708]
[1764210499677,0.30461545,3067.5,3067.4,0.001]
[1764210499976,0.6434,3067.9,3067.4,0.001]
[1764210499977,7.16252808,3067.9,3067.4,0.001]
[1764210500186,0.75643995,3067.8,3067.4,0.001]
[1764210500390,0.30463995,3067.7,3067.4,0.001]
[1764210500551,0.4557,3067.5,3067.4,0.001]
[1764210500751,0.76033995,3067.5,3067.4,0.001]
[1764210501585,1.21213995,3067.5,3067.4,0.001]
[1764210502157,4.47212365,3067.5,3067.4,0.001]
[1764210502383,0.30463995,3067.5,3067.4,0.001]
[1764210502681,0.4557,3067.5,3067.4,0.001]
[1764210502881,0.76033995,3067.5,3067.4,0.001]
[1764210505482,4.02032365,3067.5,3067.4,0.001]
[1764210505693,4.47212365,3067.5,3067.4,0.001]
[1764210506056,0.30463995,3067.5,3067.4,0.9356]
[1764210506468,0.30463995,3067.5,3067.4,1.39471025]
[1764210506772,0.6434,3067.9,3067.4,0.67111025]
[1764210507085,0.30515045,3067.8,3067.4,0.001]
[1764210507289,0.30515045,3067.7,3067.4,0.001]
[1764210507491,0.4557,3067.5,3067.4,0.001]
[1764210507691,0.76085045,3067.5,3067.4,0.001]
[1764210507884,0.30515045,3067.5,3067.4,0.001]
[1764210508079,0.30515045,3067.5,3067.4,0.4708]
[1764210508687,0.30515045,3067.5,3067.4,0.9356]
[1764210508883,0.30515045,3067.5,3067.4,4.70167744]
[1764210509093,0.002,3068.1,3067.4,5.56477338]
[1764210509262,0.30533857,3068.0,3067.4,5.56477338]
[1764210509461,0.002,3068.1,3067.4,5.56477338]
[1764210509462,0.30533857,3067.9,3067.4,5.56477338]
[1764210509682,0.30533857,3067.8,3067.5,0.86309594]
[1764210509862,0.30533857,3067.7,3067.5,1.07409594]
[1764210510062,3.26135855,3068.1,3067.5,1.07409594]
[1764210510373,0.30529649,3068.0,3067.6,0.4698]
[1764210510692,0.30529649,3067.9,3067.6,0.4698]
[1764210510987,0.30529649,3067.8,3067.6,0.4698]
[1764210511185,0.30529649,3067.7,3067.6,0.4698]
[1764210511592,0.30529649,3067.7,3067.4,1.37008341]
[1764210511791,3.26145082,3068.1,3067.6,0.4698]
[1764210512094,0.30525693,3068.0,3067.6,0.4698]
[1764210512296,0.30525693,3067.9,3067.6,0.4698]
[1764210512505,0.30525693,3067.8,3067.6,0.4698]
[1764210512802,0.30525693,3067.7,3067.6,0.4698]
[1764210512977,0.30525693,3067.7,3067.5,0.211]
[1764210513181,3.26138295,3068.1,3067.6,0.4698]
[1764210513500,0.30518771,3068.0,3067.6,0.4698]
[1764210513703,0.30518771,3067.9,3067.6,0.4698]
[1764210513883,0.30518766,3067.8,3067.6,0.9346]
[1764210514086,0.002,3068.1,3067.6,0.9346]
[1764210514278,0.30515581,3068.0,3067.7,0.4648]
[1764210514477,0.30515581,3067.9,3067.7,0.4648]
[1764210514696,0.002,3068.1,3067.7,0.4648]
[1764210515066,0.002,3068.1,3068.0,0.4698]
[1764210515269,0.002,3068.1,3068.0,0.6808]
[1764210515490,0.002,3068.1,3068.0,1.1456]